fUSD/lending_fUSD_20241221
["ID","MTS","AMOUNT","RATE_DAILY","PERIOD"]
[346175088,1734765048172,-500.0,0.00019452,2]
[346175089,1734765048183,-695.31,0.00019452,2]
[346175090,1734765048193,-545.8,0.00019452,2]
[346175091,1734765048203,-1066.88,0.00019452,2]
[346175092,1734765048212,-8814.31,0.00019452,2]
[346175093,1734765048222,-641.57,0.00019452,2]
[346175094,1734765048231,-1201.21,0.00019452,2]
[346175095,1734765048240,-1027.94,0.00019452,2]
[346175096,1734765048250,-986.58,0.00019452,2]
[346175097,1734765048259,-500.0,0.00019452,2]
[346175098,1734765048268,-832.32,0.00019452,2]
[346175099,1734765048279,-594.18,0.00019452,2]
[346175100,1734765048288,-500.0,0.00019452,2]
[346175101,1734765048298,-500.0,0.00019452,2]
[346175102,1734765048308,-1670.61,0.00019452,2]
[346175103,1734765048318,-679.53,0.00019452,2]
[346175104,1734765048327,-922.69,0.00019452,2]
[346175105,1734765048337,-850.92,0.00019452,2]
[346175106,1734765048346,-500.0,0.00019452,2]
[346175107,1734765048356,-2604.91,0.00019452,2]
[346175108,1734765048365,-679.02,0.00019452,2]
[346175109,1734765048375,-500.0,0.00019452,2]
[346175110,1734765048384,-639.51,0.00019452,2]
[346175111,1734765048396,-539.08,0.00019452,2]
[346175112,1734765048405,-936.04,0.00019452,2]
[346175113,1734765048415,-500.0,0.00019452,2]
[346175114,1734765048424,-667.52,0.00019452,2]
[346175115,1734765048434,-500.0,0.00019452,2]
[346175116,1734765048444,-500.0,0.00019452,2]
[346175117,1734765048453,-500.0,0.00019452,2]
[346175118,1734765048463,-500.0,0.00019452,2]
[346175119,1734765048472,-693.7,0.00019452,2]
[346175120,1734765048482,-572.81,0.00019452,2]
[346175121,1734765048491,-1349.96,0.00019452,2]
[346175122,1734765048501,-4988.53,0.00019452,2]
[346175123,1734765048510,-500.0,0.00019452,2]
[346175124,1734765048519,-903.09,0.00019452,2]
[346175125,1734765048530,-880.44,0.00019452,2]
[346175126,1734765048540,-500.0,0.00019452,2]
[346175127,1734765048549,-509.61640796,0.00019452,2]
[346175128,1734765048559,-6126.26800292,0.00019503,2]
[346175129,1734765048570,-700.0,0.00019518,2]
[346175130,1734765048581,-185.70347317,0.00019533,2]
[346175131,1734765048589,-2000.0,0.00019563,2]
[346175132,1734765048598,-200.0,0.00019563,2]
[346175133,1734765048607,-250.0,0.00019622,2]
[346175134,1734765048617,-175.36994323,0.00019625,2]
[346175135,1734765048627,-445.32945981,0.00019626,2]
[346175136,1734765048636,-500.0,0.00019722,2]
[346175137,1734765048646,-609.12,0.00019722,2]
[346175138,1734765048658,-731.44,0.00019722,2]
[346175139,1734765048667,-500.0,0.00019722,2]
[346175140,1734765048677,-500.0,0.00019722,2]
[346175141,1734765048686,-909.03,0.00019722,2]
[346175142,1734765048695,-1204.118159,0.00019722,2]
[346175143,1734765048704,-742.5,0.00019722,2]
[346175144,1734765048714,-810.145927,0.00019722,2]
[346175145,1734765048724,-534.19,0.00019722,2]
[346175146,1734765048733,-1459.91,0.00019722,2]
[346175147,1734765048742,-500.0,0.00019722,2]
[346175148,1734765048752,-509.53,0.00019722,2]
[346175149,1734765048763,-156.76574,0.00019722,2]
[346175150,1734765048773,-987.03,0.00019722,2]
[346175151,1734765048783,-542.86360975,0.00019722,2]
[346175152,1734765048793,-1080.78,0.00019722,2]
[346175153,1734765048802,-167.353892,0.00019722,2]
[346175154,1734765048812,-500.0,0.00019722,2]
[346175155,1734765048824,-907.79,0.00019722,2]
[346175156,1734765048836,-5648.75,0.00019722,2]
[346175157,1734765048845,-1707.55,0.00019722,2]
[346175158,1734765048855,-500.0,0.00019722,2]
[346175159,1734765048865,-555.06,0.00019722,2]
[346175160,1734765048874,-4690.0,0.00019722,2]
[346175161,1734765048884,-313.82660283,0.00019723,2]
[346175162,1734765048893,-500.0,0.00019723,2]
[346175163,1734765048902,-500.0,0.00019723,2]
[346175164,1734765048912,-525.83438185,0.00019723,2]
[346175165,1734765048922,-500.0,0.00019723,2]
[346175166,1734765048931,-500.0,0.00019723,2]
[346175167,1734765048940,-500.0,0.00019723,2]
[346175168,1734765048950,-500.0,0.00019723,2]
[346175169,1734765048960,-500.0,0.00019723,2]
[346175170,1734765048969,-500.0,0.00019723,2]
[346175171,1734765048979,-500.0,0.00019723,2]
[346175172,1734765048988,-500.0,0.00019723,2]
[346175173,1734765048998,-500.0,0.00019723,2]
[346175174,1734765049008,-500.0,0.00019723,2]
[346175175,1734765049017,-500.0,0.00019723,2]
[346175176,1734765049028,-500.0,0.00019723,2]
[346175177,1734765049037,-500.0,0.00019723,2]
[346175178,1734765049047,-500.0,0.00019723,2]
[346175179,1734765049056,-500.0,0.00019723,2]
[346175180,1734765049065,-500.0,0.00019723,2]
[346175181,1734765049075,-500.0,0.00019723,2]
[346175182,1734765049084,-500.0,0.00019723,2]
[346175183,1734765049093,-500.0,0.00019723,2]
[346175184,1734765049102,-500.0,0.00019723,2]
[346175185,1734765049112,-242.64949068,0.00019723,2]
[346175186,1734765049122,-500.0,0.00019723,2]
[346175187,1734765049132,-500.0,0.00019723,2]
[346175188,1734765049141,-500.0,0.00019723,2]
[346175189,1734765049151,-346.45053869,0.00019723,2]
[346175190,1734765049160,-500.0,0.00019723,2]
[346175191,1734765049170,-299.55767889,0.00019723,2]
[346175192,1734765049178,-500.0,0.00019723,2]
[346175193,1734765049188,-268.10046761,0.00019723,2]
[346175194,1734765049198,-500.0,0.00019723,2]
[346175195,1734765049207,-500.0,0.00019723,2]
[346175196,1734765049216,-500.0,0.00019723,2]
[346175197,1734765049226,-500.0,0.00019723,2]
[346175198,1734765049235,-500.0,0.00019723,2]
[346175199,1734765049244,-500.0,0.00019723,2]
[346175200,1734765049254,-152.74994284,0.00019723,2]
[346175201,1734765049264,-500.0,0.00019723,2]
[346175202,1734765049274,-500.0,0.00019723,2]
[346175203,1734765049284,-500.0,0.00019723,2]
[346175204,1734765049294,-500.0,0.00019723,2]
[346175205,1734765049305,-500.0,0.00019723,2]
[346175206,1734765049315,-500.0,0.00019723,2]
[346175207,1734765049324,-500.0,0.00019723,2]
[346175208,1734765049334,-500.0,0.00019723,2]
[346175209,1734765049344,-500.0,0.00019723,2]
[346175210,1734765049354,-500.0,0.00019723,2]
[346175211,1734765049364,-500.0,0.00019723,2]
[346175212,1734765049374,-500.0,0.00019723,2]
[346175213,1734765049383,-500.0,0.00019723,2]
[346175214,1734765049394,-500.0,0.00019723,2]
[346175215,1734765049404,-500.0,0.00019723,2]
[346175216,1734765049414,-500.0,0.00019723,2]
[346175217,1734765049423,-500.0,0.00019723,2]
[346175218,1734765049432,-500.0,0.00019723,2]
[346175219,1734765049442,-500.0,0.00019723,2]
[346175220,1734765049451,-500.0,0.00019723,2]
[346175221,1734765049460,-500.0,0.00019723,2]
[346175222,1734765049470,-500.0,0.00019723,2]
[346175223,1734765049479,-500.0,0.00019723,2]
[346175224,1734765049488,-500.0,0.00019723,2]
[346175225,1734765049498,-500.0,0.00019723,2]
[346175226,1734765049508,-500.0,0.00019723,2]
[346175227,1734765049620,-500.0,0.00019723,2]
[346175228,1734765049630,-500.0,0.00019723,2]
[346175229,1734765049639,-500.0,0.00019723,2]
[346175230,1734765049648,-500.0,0.00019723,2]
[346175231,1734765049661,-500.0,0.00019723,2]
[346175232,1734765049672,-500.0,0.00019723,2]
[346175233,1734765049681,-500.0,0.00019723,2]
[346175234,1734765049691,-500.0,0.00019723,2]
[346175235,1734765049700,-500.0,0.00019723,2]
[346175236,1734765049710,-500.0,0.00019723,2]
[346175237,1734765049719,-500.0,0.00019723,2]
[346175238,1734765049728,-500.0,0.00019723,2]
[346175239,1734765049738,-500.0,0.00019723,2]
[346175240,1734765049749,-500.0,0.00019723,2]
[346175241,1734765049760,-433.60316617,0.00019723,2]
[346175242,1734765049770,-500.0,0.00019723,2]
[346175243,1734765049780,-500.0,0.00019723,2]
[346175244,1734765049789,-456.7805655,0.00019723,2]
[346175245,1734765049798,-500.0,0.00019723,2]
[346175246,1734765049808,-500.0,0.00019723,2]
[346175247,1734765049817,-500.0,0.00019723,2]
[346175248,1734765049827,-500.0,0.00019723,2]
[346175249,1734765049836,-500.0,0.00019723,2]
[346175250,1734765049846,-296.81743887,0.00019723,2]
[346175251,1734765049856,-500.0,0.00019723,2]
[346175252,1734765049866,-500.0,0.00019723,2]
[346175253,1734765049875,-500.0,0.00019723,2]
[346175254,1734765049885,-500.0,0.00019723,2]
[346175255,1734765049895,-500.0,0.00019723,2]
[346175256,1734765049904,-800.63,0.00019723,2]
[346175257,1734765049914,-500.0,0.00019723,2]
[346175258,1734765049924,-500.0,0.00019723,2]
[346175259,1734765049933,-500.0,0.00019723,2]
[346175260,1734765049943,-500.0,0.00019723,2]
[346175261,1734765049953,-500.0,0.00019723,2]
[346175262,1734765049963,-500.0,0.00019723,2]
[346175263,1734765049973,-500.0,0.00019723,2]
[346175264,1734765049982,-557.93,0.00019723,2]
[346175265,1734765049992,-500.0,0.00019723,2]
[346175266,1734765050002,-500.0,0.00019723,2]
[346175267,1734765050011,-500.0,0.00019723,2]
[346175268,1734765050021,-543.19825259,0.00019723,2]
[346175269,1734765050031,-500.0,0.00019723,2]
[346175270,1734765050040,-500.0,0.00019723,2]
[346175271,1734765050050,-500.0,0.00019723,2]
[346175272,1734765050060,-505.9802566,0.00019723,2]
[346175273,1734765050070,-564.53,0.00019723,2]
[346175274,1734765050080,-500.0,0.00019723,2]
[346175275,1734765050089,-1097.94,0.00019723,2]
[346175276,1734765050098,-500.0,0.00019723,2]
[346175277,1734765050108,-510.81613728,0.00019723,2]
[346175278,1734765050117,-1312.98,0.00019723,2]
[346175279,1734765050127,-500.0,0.00019723,2]
[346175280,1734765050137,-500.0,0.00019723,2]
[346175281,1734765050146,-713.67,0.00019723,2]
[346175282,1734765050156,-545.6,0.00019723,2]
[346175283,1734765050165,-617.61,0.00019723,2]
[346175284,1734765050175,-500.0,0.00019723,2]
[346175285,1734765050184,-500.0,0.00019723,2]
[346175286,1734765050194,-500.0,0.00019723,2]
[346175287,1734765050203,-500.0,0.00019723,2]
[346175288,1734765050213,-1027.31,0.00019723,2]
[346175289,1734765050222,-1228.91,0.00019723,2]
[346175290,1734765050232,-513.35389525,0.00019723,2]
[346175291,1734765050242,-642.48750791,0.00019723,2]
[346175292,1734765050251,-781.83,0.00019723,2]
[346175293,1734765050260,-500.0,0.00019723,2]
[346175294,1734765050269,-500.0,0.00019723,2]
[346175295,1734765050279,-500.0,0.00019723,2]
[346175296,1734765050289,-839.23,0.00019723,2]
[346175297,1734765050298,-500.0,0.00019723,2]
[346175298,1734765050308,-500.0,0.00019723,2]
[346175299,1734765050318,-500.0,0.00019723,2]
[346175300,1734765050327,-500.0,0.00019723,2]
[346175301,1734765050336,-529.71,0.00019723,2]
[346175302,1734765050345,-500.0,0.00019723,2]
[346175303,1734765050355,-500.0,0.00019723,2]
[346175304,1734765050364,-500.0,0.00019723,2]
[346175305,1734765050373,-500.0,0.00019723,2]
[346175306,1734765050382,-1178.66,0.00019723,2]
[346175307,1734765050392,-500.0,0.00019723,2]
[346175308,1734765050401,-500.0,0.00019723,2]
[346175309,1734765050411,-2429.01,0.00019723,2]
[346175310,1734765050420,-500.0,0.00019723,2]
[346175311,1734765050430,-946.11,0.00019723,2]
[346175312,1734765050439,-500.0,0.00019723,2]
[346175313,1734765050449,-500.0,0.00019723,2]
[346175314,1734765050458,-500.0,0.00019723,2]
[346175315,1734765050468,-500.0,0.00019723,2]
[346175316,1734765050477,-2009.81,0.00019723,2]
[346175317,1734765050486,-500.0,0.00019723,2]
[346175318,1734765050495,-500.0,0.00019723,2]
[346175319,1734765050504,-500.0,0.00019723,2]
[346175320,1734765050513,-500.0,0.00019723,2]
[346175321,1734765050523,-500.0,0.00019723,2]
[346175322,1734765050532,-500.0,0.00019723,2]
[346175323,1734765050541,-509.08823732,0.00019723,2]
[346175324,1734765050551,-500.0,0.00019723,2]
[346175325,1734765050560,-832.29,0.00019723,2]
[346175326,1734765050571,-500.0,0.00019723,2]
[346175327,1734765050583,-500.0,0.00019723,2]
[346175328,1734765050592,-3175.66,0.00019723,2]
[346175329,1734765050602,-500.56474595,0.00019724,2]
[346175330,1734765050612,-553.19,0.00019724,2]
[346175331,1734765050623,-542.57059848,0.00019724,2]
[346175332,1734765050633,-540.6,0.00019724,2]
[346175333,1734765050642,-500.0,0.00019724,2]
[346175334,1734765050653,-500.0,0.00019724,2]
[346175335,1734765050664,-589.08,0.00019724,2]
[346175336,1734765050674,-500.0,0.00019724,2]
[346175337,1734765050683,-691.96,0.00019724,2]
[346175338,1734765050693,-572.24,0.00019724,2]
[346175339,1734765050703,-711.14,0.00019724,2]
[346175340,1734765050712,-842.2,0.00019724,2]
[346175341,1734765050722,-500.0,0.00019724,2]
[346175342,1734765050732,-928.46,0.00019724,2]
[346175343,1734765050742,-500.0,0.00019724,2]
[346175344,1734765050751,-500.0,0.00019724,2]
[346175345,1734765050760,-647.31,0.00019724,2]
[346175346,1734765050770,-500.0,0.00019724,2]
[346175347,1734765050779,-921.84,0.00019724,2]
[346175348,1734765050788,-931.6,0.00019724,2]
[346175349,1734765050797,-679.34,0.00019724,2]
[346175350,1734765050808,-621.87,0.00019724,2]
[346175351,1734765050817,-707.66,0.00019724,2]
[346175352,1734765050826,-500.0,0.00019724,2]
[346175353,1734765050836,-500.0,0.00019724,2]
[346175354,1734765050845,-1055.71,0.00019724,2]
[346175355,1734765050854,-812.57,0.00019724,2]
[346175356,1734765050863,-1167.67,0.00019724,2]
[346175357,1734765050872,-500.0,0.00019724,2]
[346175358,1734765050882,-505.48,0.00019724,2]
[346175359,1734765050891,-500.0,0.00019724,2]
[346175360,1734765050900,-500.0,0.00019724,2]
[346175361,1734765050910,-500.0,0.00019724,2]
[346175362,1734765050919,-500.0,0.00019724,2]
[346175363,1734765050928,-803.44,0.00019724,2]
[346175364,1734765050938,-588.79,0.00019724,2]
[346175365,1734765050947,-500.0,0.00019724,2]
[346175366,1734765050956,-500.0,0.00019724,2]
[346175367,1734765050965,-500.0,0.00019724,2]
[346175368,1734765050975,-500.0,0.00019724,2]
[346175369,1734765050984,-500.0,0.00019724,2]
[346175370,1734765050993,-500.0,0.00019725,2]
[346175371,1734765051002,-150.59794,0.00019725,2]
[346175372,1734765051011,-157.346594,0.00019725,2]
[346175373,1734765051021,-500.0,0.00019725,2]
[346175374,1734765051031,-614.48,0.00019725,2]
[346175375,1734765051040,-500.0,0.00019725,2]
[346175376,1734765051050,-500.0,0.00019725,2]
[346175377,1734765051060,-500.0,0.00019725,2]
[346175378,1734765051070,-500.0,0.00019725,2]
[346175379,1734765051082,-500.0,0.00019725,2]
[346175380,1734765051093,-500.0,0.00019725,2]
[346175381,1734765051103,-500.0,0.00019725,2]
[346175382,1734765051112,-500.0,0.00019725,2]
[346175383,1734765051122,-500.0,0.00019725,2]
[346175384,1734765051131,-500.0,0.00019725,2]
[346175385,1734765051140,-500.0,0.00019725,2]
[346175386,1734765051149,-500.0,0.00019725,2]
[346175387,1734765051159,-500.0,0.00019725,2]
[346175388,1734765051169,-500.0,0.00019725,2]
[346175389,1734765051179,-500.0,0.00019725,2]
[346175390,1734765051190,-500.0,0.00019725,2]
[346175391,1734765051199,-500.0,0.00019725,2]
[346175392,1734765051208,-654.57,0.00019725,2]
[346175393,1734765051218,-659.53,0.00019725,2]
[346175394,1734765051228,-500.0,0.00019725,2]
[346175395,1734765051237,-500.0,0.00019725,2]
[346175396,1734765051247,-500.0,0.00019725,2]
[346175397,1734765051256,-500.0,0.00019725,2]
[346175398,1734765051265,-500.0,0.00019725,2]
[346175399,1734765051275,-500.0,0.00019725,2]
[346175400,1734765051284,-500.0,0.00019725,2]
[346175401,1734765051294,-500.0,0.00019725,2]
[346175402,1734765051303,-500.0,0.00019725,2]
[346175403,1734765051314,-500.0,0.00019725,2]
[346175404,1734765051324,-500.0,0.00019725,2]
[346175405,1734765051335,-500.0,0.00019725,2]
[346175406,1734765051344,-500.0,0.00019725,2]
[346175407,1734765051353,-1268.03,0.00019725,2]
[346175408,1734765051362,-1370.66,0.00019725,2]
[346175409,1734765051371,-500.0,0.00019725,2]
[346175410,1734765051380,-500.0,0.00019725,2]
[346175411,1734765051391,-562.67,0.00019725,2]
[346175412,1734765051400,-850.99,0.00019725,2]
[346175413,1734765051409,-500.0,0.00019725,2]
[346175414,1734765051418,-2360.29,0.00019725,2]
[346175415,1734765051427,-2294.49,0.00019725,2]
[346175416,1734765051437,-500.0,0.00019725,2]
[346175417,1734765051446,-500.0,0.00019725,2]
[346175418,1734765051455,-613.95,0.00019725,2]
[346175419,1734765051464,-500.0,0.00019725,2]
[346175420,1734765051473,-956.64,0.00019725,2]
[346175421,1734765051482,-500.0,0.00019725,2]
[346175422,1734765051491,-1849.46,0.00019725,2]
[346175423,1734765051500,-546.09591569,0.00019725,2]
[346175424,1734765051509,-989.46,0.00019725,2]
[346175425,1734765051518,-500.0,0.00019725,2]
[346175426,1734765051528,-500.0,0.00019725,2]
[346175427,1734765051537,-495.86405218,0.00019725,2]
[346175428,1734765051547,-500.0,0.00019725,2]
[346175429,1734765051556,-696.16,0.00019725,2]
[346175430,1734765051565,-500.0,0.00019725,2]
[346175431,1734765051577,-754.41,0.00019725,2]
[346175432,1734765051586,-500.0,0.00019725,2]
[346175433,1734765051596,-1040.23,0.00019725,2]
[346175434,1734765051605,-2251.73,0.00019725,2]
[346175435,1734765051615,-667.89,0.00019725,2]
[346175436,1734765051628,-500.0,0.00019725,2]
[346175437,1734765051638,-910.96,0.00019725,2]
[346175438,1734765051647,-675.58,0.00019725,2]
[346175439,1734765051656,-1257.52,0.00019725,2]
[346175440,1734765051666,-500.0,0.00019725,2]
[346175441,1734765051676,-1844.44,0.00019725,2]
[346175442,1734765051685,-504.72684227,0.00019725,2]
[346175443,1734765051694,-500.0,0.00019725,2]
[346175444,1734765051704,-500.0,0.00019725,2]
[346175445,1734765051713,-3778.3,0.00019725,2]
[346175446,1734765051722,-743.81,0.00019725,2]
[346175447,1734765051731,-2008.55,0.00019725,2]
[346175448,1734765051741,-4156.22,0.00019725,2]
[346175449,1734765051753,-500.0,0.00019725,2]
[346175450,1734765052019,-500.0,0.00019725,2]
[346175451,1734765052040,-500.0,0.00019725,2]
[346175452,1734765052050,-2074.99,0.00019725,2]
[346175453,1734765052060,-649.16,0.00019725,2]
[346175454,1734765052069,-892.74,0.00019725,2]
[346175455,1734765052079,-500.0,0.00019725,2]
[346175456,1734765052089,-597.41,0.00019725,2]
[346175457,1734765052098,-500.0,0.00019725,2]
[346175458,1734765052108,-1171.35,0.00019725,2]
[346175459,1734765052118,-500.0,0.00019725,2]
[346175460,1734765052128,-828.43,0.00019725,2]
[346175461,1734765052138,-1611.49,0.00019725,2]
[346175462,1734765052147,-500.0,0.00019726,2]
[346175463,1734765052157,-520.04,0.00019726,2]
[346175464,1734765052167,-500.0,0.00019726,2]
[346175465,1734765052176,-512.56267274,0.00019726,2]
[346175466,1734765052186,-500.0,0.00019726,2]
[346175467,1734765052196,-500.0,0.00019726,2]
[346175468,1734765052206,-200.17587767,0.00019726,2]
[346175469,1734765052216,-503.58732396,0.00019726,2]
[346175470,1734765052225,-526.22,0.00019726,2]
[346175471,1734765052235,-508.48917116,0.00019726,2]
[346175472,1734765052245,-500.0,0.00019726,2]
[346175473,1734765052255,-500.0,0.00019726,2]
[346175474,1734765052265,-500.0,0.00019726,2]
[346175475,1734765052275,-500.0,0.00019726,2]
[346175476,1734765052285,-504.51689596,0.00019726,2]
[346175477,1734765052295,-337.95858271,0.00019726,2]
[346175478,1734765052304,-500.0,0.00019726,2]
[346175479,1734765052314,-500.0,0.00019726,2]
[346175480,1734765052323,-500.0,0.00019726,2]
[346175481,1734765052333,-500.0,0.00019726,2]
[346175482,1734765052342,-255.52960006,0.00019726,2]
[346175483,1734765052352,-500.0,0.00019726,2]
[346175484,1734765052361,-276.80664774,0.00019726,2]
[346175485,1734765052372,-500.0,0.00019726,2]
[346175486,1734765052381,-500.0,0.00019726,2]
[346175487,1734765052390,-500.0,0.00019726,2]
[346175488,1734765052399,-500.0,0.00019726,2]
[346175489,1734765052409,-500.0,0.00019726,2]
[346175490,1734765052418,-500.0,0.00019726,2]
[346175491,1734765052427,-500.0,0.00019726,2]
[346175492,1734765052436,-500.0,0.00019726,2]
[346175493,1734765052447,-500.0,0.00019726,2]
[346175494,1734765052457,-500.0,0.00019726,2]
[346175495,1734765052466,-500.0,0.00019726,2]
[346175496,1734765052475,-500.0,0.00019726,2]
[346175497,1734765052484,-617.49,0.00019726,2]
[346175498,1734765052494,-500.0,0.00019726,2]
[346175499,1734765052504,-500.0,0.00019726,2]
[346175500,1734765052515,-500.0,0.00019726,2]
[346175501,1734765052526,-500.0,0.00019726,2]
[346175502,1734765052536,-500.0,0.00019726,2]
[346175503,1734765052546,-500.0,0.00019726,2]
[346175504,1734765052556,-500.0,0.00019726,2]
[346175505,1734765052567,-500.0,0.00019726,2]
[346175506,1734765052583,-500.0,0.00019726,2]
[346175507,1734765052592,-500.0,0.00019726,2]
[346175508,1734765052602,-500.0,0.00019726,2]
[346175509,1734765052611,-500.0,0.00019726,2]
[346175510,1734765052621,-500.0,0.00019726,2]
[346175511,1734765052630,-500.0,0.00019726,2]
[346175512,1734765052640,-569.52,0.00019726,2]
[346175513,1734765052650,-500.0,0.00019726,2]
[346175514,1734765052661,-500.0,0.00019726,2]
[346175515,1734765052671,-500.0,0.00019726,2]
[346175516,1734765052680,-521.59,0.00019726,2]
[346175517,1734765052689,-618.79,0.00019726,2]
[346175518,1734765052699,-500.0,0.00019726,2]
[346175519,1734765052710,-500.0,0.00019726,2]
[346175520,1734765052719,-526.53,0.00019726,2]
[346175521,1734765052730,-500.0,0.00019726,2]
[346175522,1734765052741,-401.6,0.00019726,2]
[346175523,1734765052751,-500.0,0.00019726,2]
[346175524,1734765052762,-500.0,0.00019726,2]
[346175525,1734765052771,-500.0,0.00019726,2]
[346175526,1734765052781,-609.6,0.00019726,2]
[346175527,1734765052791,-502.364136,0.00019726,2]
[346175528,1734765052800,-500.0,0.00019726,2]
[346175529,1734765052809,-500.0,0.00019726,2]
[346175530,1734765052818,-500.0,0.00019726,2]
[346175531,1734765052828,-500.0,0.00019726,2]
[346175532,1734765052838,-500.0,0.00019726,2]
[346175533,1734765052847,-528.4,0.00019726,2]
[346175534,1734765052856,-523.51,0.00019726,2]
[346175535,1734765052865,-500.0,0.00019726,2]
[346175536,1734765052874,-500.0,0.00019726,2]
[346175537,1734765052884,-500.0,0.00019726,2]
[346175538,1734765052894,-509.74025556,0.00019726,2]
[346175539,1734765052903,-500.0,0.00019726,2]
[346175540,1734765052912,-500.0,0.00019726,2]
[346175541,1734765052922,-500.0,0.00019726,2]
[346175542,1734765052932,-500.0,0.00019726,2]
[346175543,1734765052942,-530.0,0.00019726,2]
[346175544,1734765052951,-567.63,0.00019726,2]
[346175545,1734765052961,-500.0,0.00019726,2]
[346175546,1734765052971,-500.0,0.00019726,2]
[346175547,1734765052980,-500.0,0.00019726,2]
[346175548,1734765052990,-500.0,0.00019726,2]
[346175549,1734765053000,-500.0,0.00019726,2]
[346175550,1734765053010,-591.24,0.00019726,2]
[346175551,1734765053019,-500.0,0.00019726,2]
[346175552,1734765053029,-652.96,0.00019726,2]
[346175553,1734765053038,-500.0,0.00019726,2]
[346175554,1734765053047,-500.0,0.00019726,2]
[346175555,1734765053057,-500.0,0.00019726,2]
[346175556,1734765053067,-586.29,0.00019726,2]
[346175557,1734765053076,-500.0,0.00019726,2]
[346175558,1734765053085,-500.0,0.00019726,2]
[346175559,1734765053095,-500.0,0.00019726,2]
[346175560,1734765053104,-500.0,0.00019726,2]
[346175561,1734765053113,-500.0,0.00019726,2]
[346175562,1734765053123,-521.75997186,0.00019726,2]
[346175563,1734765053132,-500.0,0.00019726,2]
[346175564,1734765053142,-500.0,0.00019726,2]
[346175565,1734765053151,-500.0,0.00019726,2]
[346175566,1734765053160,-500.0,0.00019726,2]
[346175567,1734765053170,-500.0,0.00019726,2]
[346175568,1734765053179,-500.0,0.00019726,2]
[346175569,1734765053188,-500.0,0.00019726,2]
[346175570,1734765053198,-500.0,0.00019726,2]
[346175571,1734765053207,-500.0,0.00019726,2]
[346175572,1734765053216,-500.0,0.00019726,2]
[346175573,1734765053226,-500.0,0.00019726,2]
[346175574,1734765053235,-500.0,0.00019726,2]
[346175575,1734765053245,-500.0,0.00019726,2]
[346175576,1734765053254,-500.0,0.00019726,2]
[346175577,1734765053263,-500.0,0.00019726,2]
[346175578,1734765053273,-645.7,0.00019726,2]
[346175579,1734765053282,-500.0,0.00019726,2]
[346175580,1734765053291,-500.0,0.00019726,2]
[346175581,1734765053301,-500.0,0.00019726,2]
[346175582,1734765053310,-500.0,0.00019726,2]
[346175583,1734765053319,-554.92,0.00019726,2]
[346175584,1734765053328,-540.99,0.00019726,2]
[346175585,1734765053337,-500.0,0.00019726,2]
[346175586,1734765053347,-500.0,0.00019726,2]
[346175587,1734765053356,-602.91,0.00019726,2]